Cogmind - Beta 16.1 *** ADVENTURER MODE // 2026.02.24 @ 15:56:01 Player: triibiis Result: Destroyed by Y-45 Defender with Heavy Assault Rifle Performance ------------- Evolutions (2) 1000 Regions Visited (3) 600 Robots Destroyed (32) 160 Value Destroyed (983) 983 Prototype IDs (0) 0 Alien Tech Used (0) 0 Bonus (0) 0 TOTAL SCORE: 2743 Bonus ------- None Cogmind --------- Core Integrity 0/550 Matter 84/300 Energy 39/125 System Corruption 7% Temperature Warning (315) Movement Core (650) Ox12 Location -8/Materials Parts ------- > --- POWER (1) -------- Light Ion Engine > --- PROPULSION (3) --- Xenon Bombardment Thruster > --- UTILITY (5) ------ Large Storage Unit Advanced Targeting Computer Hacking Suite > --- WEAPON (2) ------- Heavy Ion Cannon Heavy Ion Cannon > --- INVENTORY (15) --- Light Treads Xenon Bombardment Thruster Heavy Assault Rifle Peak State ------------ > --- POWER ------------ Light Ion Engine > --- PROPULSION ------- Subdweller Monowheel Xenon Bombardment Thruster Xenon Bombardment Thruster > --- UTILITY ---------- Large Storage Unit Advanced Targeting Computer Hacking Suite > --- WEAPON ----------- Heavy Ion Cannon Heavy Ion Cannon > --- INVENTORY -------- Light Treads Heavy Assault Rifle [Rating: 26] Favorites ----------- Power Light Nuclear Core Engine Ion Engine Power Core Light Nuclear Core Propulsion Compact Wheel Treads Light Treads Wheel Compact Wheel Flight Unit Xenon Bombardment Thruster Utility Large Storage Unit Device Seismic Detector Storage Large Storage Unit Processor Targeting Computer Hackware Hacking Suite Weapon Mining Laser Energy Gun EM Pulse Gun Energy Cannon Heavy Ion Cannon Ballistic Gun Light Assault Rifle Ballistic Cannon Light Cannon Launcher Grenade Launcher Special Weapon Mining Laser Build | -11 -10 -10 -8 ------- Run | Yrd Mat Sub Mat Slots Evolved 4 | . . . 4 Power . | . . . . Propulsion 1 | . . . 1 Utility 3 | . . . 3 Weapon . | . . . . Parts Attached 38 | 8 17 1 12 Power 4 | 2 2 . . Engine 2 | 2 . . . Core 2 | . 2 . . Reactor . | . . . . Propulsion 11 | 2 6 1 2 Treads 2 | . 2 . . Leg . | . . . . Wheel 7 | 2 4 1 . Hover . | . . . . Flight 2 | . . . 2 Utility 9 | 1 3 . 5 Device 2 | . 1 . 1 Storage 2 | 1 1 . . Processor 4 | . 1 . 3 Hackware 1 | . . . 1 Protection . | . . . . Artifact . | . . . . Weapon 14 | 3 6 . 5 Energy Gun 2 | 1 1 . . Energy Cannon 2 | . . . 2 Ballistic Gun 5 | 2 1 . 2 Ballistic Cannon 1 | . 1 . . Launcher 2 | . 1 . 1 Special Weapon 2 | . 2 . . Impact Weapon . | . . . . Slashing Weapon . | . . . . Piercing Weapon . | . . . . Special Melee Weapon . | . . . . Unidentified Prototypes . | . . . . Parts Lost 19 | . 6 . 13 Power 2 | . . . 2 Propulsion 5 | . 2 . 3 Utility 4 | . . . 4 Weapon 8 | . 4 . 4 Highest Loss Streak 9 | . 4 . 9 To Critical Strikes 1 | . . . 1 Average Backups 8 | 2 9 8 6 Power 1 | . 1 2 1 Propulsion 2 | 1 2 1 1 Utility 1 | . 1 3 1 Weapon 3 | . 3 2 2 Tool/Special . | . . . . Unused Backups . | . . . . Power . | . . . . Propulsion . | . . . . Utility . | . . . . Weapon . | . . . . Tool/Special . | . . . . Average Slot Usage (%) 92 | . 95 100 77 Engine 2 | . 2 . 1 Core 10 | . 11 14 5 Treads 2 | . 3 . . Wheel 23 | . 24 28 16 Device 3 | . 2 . 10 Storage 13 | . 14 14 9 Processor 11 | . 10 14 16 Energy Gun 2 | . 1 14 5 Ballistic Gun 9 | . 12 . 1 Ballistic Cannon 2 | . 3 . . Launcher 1 | . 1 . . Special Weapon 6 | . 6 14 4 Peak Build Rating 26 | 6 11 11 26 Average Rating 10 | 3 8 11 16 On Entrance 7 | . 6 11 11 Avg Prop Armor Cover (%) 7 | . . . 7 Naked Turns . | . . . . Heaviest Build 39 | 14 31 28 39 Greatest Support 56 | 20 40 36 56 Greatest Overweight (x) 6 | . 2 . 6 Average Overweight (x) . | . . . . Largest Inventory Capacity 15 | 8 15 15 15 Average Capacity 14 | 6 14 15 15 Most Carried 15 | 4 15 9 8 Average Carried 8 | 2 9 8 5 Final Capacity 15 | 8 15 15 15 Final Carried 9 | 4 8 9 3 Class Distribution -------------------- 100% | Mutant Dominant Class ---------------- Mutant | -10/Materials Mutant | -10/Subcaves Mutant | -8/Materials Resources | -11 -10 -10 -8 ----------- Run | Yrd Mat Sub Mat Matter Collected 647 | 278 369 . . Remotely . | . . . . Salvage Created 716 | . 427 . 289 Parts 42 | . 32 . 10 Haulers Intercepted . | . . . . Recyclers Shooed . | . . . . Parts Field Recycled . | . . . . Retrieved Matter . | . . . . Parts Self-Destructed . | . . . . Prevented . | . . . . Parts Restored . | . . . . Kills | -11 -10 -10 -8 ------- Run | Yrd Mat Sub Mat Combat Hostiles Destroyed 27 | . 18 . 9 Guns 12 | . 10 . 2 Cannons 5 | . 2 . 3 AOE 10 | . 6 . 4 Classes Destroyed 8 | . 5 . 3 Worker 1 | . 1 . . Builder 1 | . . . 1 Tunneler 1 | . . . 1 Watcher 2 | . 2 . . Swarmer 6 | . 6 . . Grunt 18 | . 10 . 8 Brawler 1 | . . . 1 Subdweller 2 | . 2 . . Best Kill Streak 12 | . 12 . 8 Combat Bots Only 11 | . 11 . 6 Max Kills in Single Turn 3 | . 3 . 2 Gunslinging 1 | . 1 . . Exploded 2 | . 2 . 2 Melee . | . . . . Uniques/NPCs Destroyed . | . . . . Combat | -11 -10 -10 -8 -------- Run | Yrd Mat Sub Mat Hostile Shots Fired 237 | . 105 . 132 Missed 62 | . 34 . 28 Hits 175 | . 71 . 104 Melee 6 | . . . 6 Projectile 169 | . 71 . 98 Critical Strikes 15 | . 3 . 12 Damage Taken 2253 | . 806 . 1447 Core 749 | . 195 . 554 Absorbed by Shields . | . . . . Ignored by Resistances 656 | . 240 . 416 Regen/Repaired (Parts) 21 | . . . 21 Core Remaining (%) 61 | 100 . 22 . Volleys Fired 67 | . 43 1 23 Largest 2 | . 2 1 2 Hottest 140 | . 140 100 140 Shots Fired 107 | . 65 1 41 Gun 66 | . 50 . 16 Cannon 19 | . 3 . 16 Launcher 14 | . 8 . 6 Special 8 | . 4 1 3 Kinetic 63 | . 50 . 13 Thermal 24 | . 4 1 19 Explosive 14 | . 8 . 6 Electromagnetic 6 | . 3 . 3 Robot Hit Streak 38 | . 18 . 38 Robot Miss Streak 2 | . 2 . 2 Penetration Max . | . . . . Secondary Targets 2 | . 1 . 1 Max Gunslinging Chain 1 | . 1 . 1 Shots Hit Robots 81 | . 45 . 36 Core Hits 61 | . 37 . 24 Critical Kills . | . . . . Critical Parts Destroyed . | . . . . Critical Strikes . | . . . . Melee Attacks . | . . . . Impact . | . . . . Slashing . | . . . . Piercing . | . . . . Sneak Attacks . | . . . . Combat Hostiles . | . . . . Follow-up Attacks . | . . . . Damage Inflicted 2267 | . 1012 . 1255 Guns 680 | . 380 . 300 Cannons 380 | . 57 . 323 Explosions 1063 | . 503 . 560 Melee . | . . . . Ramming . | . . . . Kinetic 674 | . 414 . 260 Thermal 467 | . 72 . 395 Explosive 1063 | . 503 . 560 Electromagnetic 63 | . 23 . 40 Impact . | . . . . Slashing . | . . . . Piercing . | . . . . Highest Corruption 7 | . . . 7 Average Corruption 6 | . . . 6 Corruption Purged . | . . . . Corruption Blocked . | . . . . Effects 4 | . . . 4 Message Errors 1 | . . . 1 Energy Discharges 1 | . . . 1 Data Loss (major) 1 | . . . 1 Alerts 1 | . . . 1 Overload Shots . | . . . . Overflow Damage 24 | . 14 . 10 Projectiles 10 | . . . 10 Explosions 14 | . 14 . . Melee . | . . . . Knockbacks . | . . . . Impact . | . . . . Kinetic . | . . . . Secondary . | . . . . Self-Inflicted Damage 143 | . 36 . 107 Shots 10 | . 4 . 6 Rammed . | . . . . Targets Rammed . | . . . . Kicked . | . . . . Crushed . | . . . . Highest Temperature 469 | . 469 . 315 Average Temperature 145 | . 141 . 150 Received Heat Transfer 1859 | . 851 . 1008 Effects 5 | . 4 . 1 Shutdowns 2 | . 2 . . Energy Bleed 2 | . 1 . 1 Damage (major) 1 | . 1 . . Siege Activations . | . . . . Martial Activations . | . . . . Shielding Activations . | . . . . Robots Disrupted . | . . . . Combat Hostiles . | . . . . Robots Corrupted . | . . . . Combat Hostiles . | . . . . Parts Fried . | . . . . Impact Corruptions . | . . . . Robots Melted . | . . . . Combat Hostiles . | . . . . Parts Melted 1 | . . . 1 Heat Transferred 744 | . 150 . 594 Parts Sabotaged . | . . . . Parts Stolen . | . . . . Parts Stripped . | . . . . Power Chain Reactions . | . . . . Alert | -11 -10 -10 -8 ------- Run | Yrd Mat Sub Mat Maximum Alert Level 1 | . 1 . . Low Security (%) 75 | 100 67 . 100 Level 1 24 | . 32 . . Level 2 . | . . . . Level 3 . | . . . . Level 4 . | . . . . Level 5 . | . . . . High Security . | . . . . Max Security . | . . . . Peak Influence 243 | . 243 . 135 Initial . | . . . . Average 110 | . 136 . 35 Influence Increases 740 | . 488 . 252 Destroy 0b10 Robot/C 500 | . 320 . 180 Destroy 0b10 Robot/NC 25 | . 15 . 10 Destroy Leader 104 | . 64 . 40 Successful Hack 30 | . 27 . 3 Disable Machine 27 | . 18 . 9 Destroy Structure 54 | . 44 . 10 Influence Decreases 625 | . 488 . 137 Time Decay 481 | . 428 . 53 Lost Part 144 | . 60 . 84 Squads Dispatched 7 | . 3 . 4 Investigation 4 | . 3 . 1 Extermination . | . . . . Reinforcement 3 | . . . 3 Assault . | . . . . Garrison . | . . . . Intercept . | . . . . Searches Triggered . | . . . . Construction Impeded 1 | . . . 1 Haulers Reinforced . | . . . . Active Scanning Responses . | . . . . Cargo Convoy Interrupts . | . . . . Stealth | -11 -10 -10 -8 --------- Run | Yrd Mat Sub Mat Distress Signals 2 | . . . 2 Communications Jammed . | . . . . Distress Signals . | . . . . Times Spotted 38 | . 22 . 16 Peak Tracking Total 10 | . 10 . 8 Tactical Retreats . | . . . . Traps | -11 -10 -10 -8 ------- Run | Yrd Mat Sub Mat Traps Triggered 1 | . 1 . . Indirectly . | . . . . Trap Hack Attempts . | . . . . Triggered . | . . . . Disarmed . | . . . . Reprogrammed . | . . . . Reused . | . . . . Traps Extracted . | . . . . Installed . | . . . . Triggered . | . . . . Machines | -11 -10 -10 -8 ---------- Run | Yrd Mat Sub Mat Machines Disabled 3 | . 2 . 1 Max in Single Turn 1 | . 1 . 1 Machines Repaired . | . . . . Machines Dismantled . | . . . . Machines Sabotaged . | . . . . Overloaded Fab Kills . | . . . . Hacking | -11 -10 -10 -8 --------- Run | Yrd Mat Sub Mat Machines Accessed 9 | . 7 . 2 Terminals 8 | . 7 . 1 Fabricators . | . . . . Repair Stations 1 | . . . 1 Recycling Units . | . . . . Scanalyzers . | . . . . Garrison Access . | . . . . Total Hacks 37 | . 28 . 9 Successful 14 | . 10 . 4 Failed 23 | . 18 . 5 Catastrophic 4 | . 4 . . Database Lockouts . | . . . . Manual 15 | . 13 . 2 Terminals 32 | . 28 . 4 Fabricators . | . . . . Repair Stations 5 | . . . 5 Recycling Units . | . . . . Scanalyzers . | . . . . Garrison Access . | . . . . Terminal Hacks 12 | . 10 . 2 Level Access Points 1 | . 1 . . Branch Access Points 2 | . 2 . . Emergency Access Points 1 | . . . 1 Alert Level 2 | . 2 . . Locate Traps 1 | . 1 . . Security Status 1 | . 1 . . Patrol Status 1 | . 1 . . Recall Reinforcements 1 | . . . 1 Zone Layout 2 | . 2 . . Fabricator Hacks . | . . . . Repair Station Hacks 2 | . . . 2 Scan Component 1 | . . . 1 Repair 1 | . . . 1 Recycling Unit Hacks . | . . . . Scanalyzer . | . . . . Garrison Access Hacks . | . . . . Unauthorized Hacks . | . . . . Terminals . | . . . . Fabricators . | . . . . Repair Stations . | . . . . Recycling Units . | . . . . Scanalyzers . | . . . . Garrison Access . | . . . . Data Cores Recovered . | . . . . Used . | . . . . Hacking Detections 9 | . 7 . 2 Full Trace Events 8 | . 7 . 1 Feedback Events . | . . . . Feedback Blocked . | . . . . Robot Schematics Acquired . | . . . . Robots Built . | . . . . Authchips . | . . . . Time . | . . . . Total Robot Build Rating . | . . . . Part Schematics Acquired . | . . . . Parts Built . | . . . . Authchips . | . . . . Time . | . . . . Total Part Build Rating . | . . . . Part Studies Acquired . | . . . . Parts Repaired 1 | . . . 1 Time 26 | . . . 26 Parts Recycled . | . . . . Recycled Matter . | . . . . Retrieved Matter . | . . . . Retrieved Components . | . . . . Parts Scanalyzed . | . . . . Part Schematics Acquired . | . . . . Parts Damaged . | . . . . Bothacking | -11 -10 -10 -8 ------------ Run | Yrd Mat Sub Mat Used RIF Installer . | . . . . Robots Hacked . | . . . . Non-combat . | . . . . Combat . | . . . . Robot Hacks Applied . | . . . . Relay Couplers Released . | . . . . Fabnet Peak Effective % . | . . . . Robots Rewired . | . . . . Allies Hacked . | . . . . Hacks Repelled . | . . . . Allies | -11 -10 -10 -8 -------- Run | Yrd Mat Sub Mat Total Allies . | . . . . Largest Group . | . . . . Highest-Rated Group . | . . . . Highest-Rated Ally . | . . . . Total Orders . | . . . . Ally Attacks . | . . . . Total Damage . | . . . . Kills . | . . . . Allies Corrupted . | . . . . Allies Melted . | . . . . Intel | -11 -10 -10 -8 ------- Run | Yrd Mat Sub Mat Active Infowar (turns) 341 | . 144 . 197 Optics 145 | . . . 145 Seismic 273 | . 144 . 129 Robot Analysis Total . | . . . . Derelict Logs Recovered . | . . . . Drone Launches . | . . . . Drone Recoveries . | . . . . Exploration | -11 -10 -10 -8 ------------- Run | Yrd Mat Sub Mat Turns Passed 1237 | 49 904 48 236 Spaces Moved 896 | 45 718 41 92 Core 1 | 1 . . . Treads 54 | . 54 . . Legs . | . . . . Wheels 840 | 44 664 41 91 Hover . | . . . . Flight 1 | . . . 1 Fastest Speed 50 | 50 80 105 105 Average Speed 103 | 79 104 105 112 Slowest Speed 525 | 80 160 105 525 Overloaded Moves . | . . . . Propulsion Burnouts . | . . . . Robots Hopped . | . . . . Potential Cave-ins . | . . . . Cave-ins Triggered . | . . . . Exploration Rate (%) 29 | 4 97 5 11 Regions Visited 3 Branch Regions 1 Pre-discovered Areas . | . . . . Known Exits Taken . | . . . . Unknown Exits Taken 3 | 1 1 1 . Scrap Searched . | . . . . Spaces Dug . | . . . . Terrain Destroyed 59 | . 46 . 13 Melee . | . . . . Projectile 4 | . . . 4 AOE 55 | . 46 . 9 Terrain Rammed . | . . . . Walls Destroyed . | . . . . Machines Disabled . | . . . . Actions | -11 -10 -10 -8 --------- Run | Yrd Mat Sub Mat Total 1077 | 54 804 42 177 Wait 40 | . 3 . 37 Move 893 | 44 717 40 92 Hop . | . . . . Pick Up 15 | 2 10 . 3 Fast Attach 19 | 6 7 . 6 Attach 16 | . 5 . 11 Detach 7 | . 4 . 3 Swap 11 | 2 7 1 1 Drop 9 | . 8 . 1 Fire 67 | . 43 1 23 Melee . | . . . . Ram . | . . . . Kick . | . . . . Crush . | . . . . Escape Stasis . | . . . . Rewire . | . . . . Trap . | . . . . Miscellaneous . | . . . . Route ------- -11/Scrapyard -10/Materials (discovered 5 exits: *Mat x3 / *Min / [*Sub]) -10/Subcaves -8/Materials History --------- Turn | Location | Event 9 | -11/Scrapyard | Discovered new exit (range 15) 50 | -11/Scrapyard | Entered Materials 90 | -10/Materials | Identified exit to Mines 107 | -10/Materials | Discovered new exit (range 3) 155 | -10/Materials | Identified exit to Materials 228 | -10/Materials | Lost 4 parts (2n2w) 241 | -10/Materials | Destroyed 11 combat bots 326 | -10/Materials | Build established: Mutant 373 | -10/Materials | Core integrity fell below 50% 607 | -10/Materials | Discovered new exit (range 5) 750 | -10/Materials | Derelicts attacked the area 954 | -10/Materials | Entered Subcaves 990 | -10/Subcaves | Discovered new exit (range 15) 994 | -10/Subcaves | Shifting Twisted Machinery released Sub. Monowheel 1002 | -10/Subcaves | Entered Materials 1002 | -8/Materials | Evolved 4 slots: Propulsion x1, Utility x3 1056 | -8/Materials | Repaired Mining Laser 1153 | -8/Materials | Core integrity fell below 50% 1196 | -8/Materials | Lost 9 parts (1p1n3u4w) 1212 | -8/Materials | Core integrity fell below 20% 1238 | -8/Materials | Destroyed by Y-45 Defender with Heavy Assault Rifle Last Messages --------------- System corrupted: IFF burst signal emitted. Seismic Detector destroyed. Critical hit (Burn: +37). G-47 Trooper destroyed. Lgt. Nuclear Core destroyed. W-25 Informer distress signal alerts nearby ally. Acquired Xenon Bombardment Thruster. MA2FFAJ=MU%WTCLMTZZ:QZCI3NN9IT24 Acquired Xenon Bombardment Thruster. G-47 Trooper destroyed. Critical hit (Burn: +37). Acquired Xenon Bombardment Thruster. Critical hit (Burn: +37). The unstable cave ceiling collapses. Imp. Heat Sink melted. G-47 Trooper destroyed. Critical hit (Burn: +37). Xenon Bombardment Thruster destroyed. Sub. Monowheel destroyed. Map ----- +----------------------------------------------------+ | | | | | | | | | | | | | | | ???????????????????????????????????????? | | ???????????????????????????????????????? | | ???????#???????????????????????????????? | | ???????#=??????????????????????????????? | | ???????? ?????????????????????????????? | | ????????? ????????##?##???????????????? | | ????????+#+#######? ?T" ???????????????? | | ????????? ?? ? ????????????????? | | ?????????? #?? "?"???????????????? | | ???????????# ### """ ??????????????? | | ??????????## #/ ""?????#??????????? | | ??????????# # ?????? #??????????? | | ########### %# ####+## ##+##??????? | | = #?????? | | = +?????? | | % ######## #?????? | | ############ ==#???????????? | | ???????????# ! ==#???????????? | | ??????????#; [ @=#???????????? | | ???????????# g%!%= w #???????????? | | ??+??????? ; Y =%Y ]]#???????????? | | ???????????# #######; #???????????? | | ???????????# #?????######???????????? | | ???????????# !%*#??????????????????????? | | ???????????# = #??????????????????????? | | ???????????# #??????????????????????? | | ??????????? ??????????????????????? | | ?????????? ??????????????????????? | | ?????????? #?????????????????????? | | ?????????? #?????????????????????? | | ?????????? != #?????????????????????? | | ?????????" != #?????????????????????? | | ?????????" == #?????????????????????? | | ??????????? ?????????????????????? | | ??????????? ???????????????????????? | | ???????????????????????????????????????? | | ???????????????????????????????????????? | | ???????????????????????????????????????? | | ???????????????????????????????????????? | | ???????????????????????????????????????? | | ???????????????????????????????????????? | | ???????????????????????????????????????? | | ???????????????????????????????????????? | +----------------------------------------------------+ Best States ------------- Heat Dissipation 31 Energy Generation 14 Energy Capacity 250 Matter Stores 300 Matter Capacity 300 Sight Range 21 Terrain Scan Density 10 Resistance: KI 20 Resistance: TH 20 Resistance: EX 20 Resistance: EM 20 Resistance: I 20 Resistance: S 20 Resistance: P 20 Evasion (%) 44 Targeting Accuracy 8 Recoil Reduction 2 Offensive Hacking 20 Item Schematics ----------------- None Robot Schematics ------------------ None Fabricated ------------ Nothing Repaired ---------- Mining Laser | 30% | -8/Materials Studied --------- None Alien Tech Used ----------------- None Achievements -------------- Hydra Challenges ------------ None Game ------ Seed HardenedStorageMapper Manual? 0 Play Time 00:23:33 Cumulative 23.9 hours Start 2026.02.24 @ 13:36:04 End 2026.02.24 @ 15:56:01 Sessions 1 Manual Loads 0 Difficulty Adventurer Special Mode None Game No. 65 Rogue 0 Adventurer 65 Explorer 0 Win Type - Total 0 Types 0/0/0/0/0/0/0/0/0/0 Lore% 21 Gallery% 19 Achievement% 16 Wizard Run 0 Options --------- Layout 1 ASCII 0 Keyboard 0 Movement Arrows Keybinds 0 Fullscreen 1 Font 36/Smallcaps Map View 50x43 Zoom Use 0% Tactical HUD 0 Map Filters NONE Filters NONE Steam 1 RUN: d87f267c-1a2c-4514-974c-89e418a89d90